bitfinex/quotes_BTCUSD_20250814
["timestamp","ask_amount","ask_price","bid_price","bid_amount"]
[1755169560610,0.46870322,120810.0,120800.0,1.08987361]
[1755169560841,0.46870322,120810.0,120800.0,1.22291361]
[1755169561890,0.4314492,120810.0,120800.0,1.22291361]
[1755169564715,0.4314492,120810.0,120800.0,1.22287361]
[1755169566274,0.4314492,120810.0,120800.0,1.28432944]
[1755169566901,0.4314492,120810.0,120800.0,1.22287361]
[1755169568298,0.4322992,120810.0,120800.0,1.08477361]
[1755169568467,0.4322992,120810.0,120800.0,1.21773361]
[1755169569025,1.27916304,120810.0,120800.0,1.00205036]
[1755169569178,0.79027822,120810.0,120800.0,1.00205036]
[1755169569379,0.78974822,120810.0,120800.0,1.13501036]
[1755169569574,0.78974822,120810.0,120800.0,1.00205036]
[1755169569780,0.79027822,120810.0,120800.0,1.13501036]
[1755169569978,0.78974822,120810.0,120800.0,1.00105036]
[1755169570346,0.78974822,120810.0,120800.0,1.13401036]
[1755169570553,0.82816213,120810.0,120800.0,1.13301036]
[1755169571134,0.82816213,120810.0,120800.0,1.13614036]
[1755169571539,0.04369763,120820.0,120800.0,1.13614036]
[1755169571746,0.4340359,120810.0,120800.0,1.34318036]
[1755169571945,0.4334492,120810.0,120800.0,1.47610036]
[1755169572799,0.4334492,120810.0,120800.0,1.34318036]
[1755169573065,0.4334492,120810.0,120800.0,1.47610036]
[1755169573399,0.4334492,120810.0,120800.0,1.47809036]
[1755169573630,0.4334492,120810.0,120800.0,1.34517036]
[1755169573829,0.4334492,120810.0,120800.0,1.47809036]
[1755169574036,0.4334492,120810.0,120800.0,1.5270849]
[1755169574236,0.4334492,120810.0,120800.0,1.3941649]
[1755169574439,0.4344492,120810.0,120800.0,1.47809036]
[1755169574759,0.4344492,120810.0,120800.0,1.56081361]
[1755169574958,0.4344492,120810.0,120800.0,1.42789361]
[1755169575120,0.4344492,120810.0,120800.0,1.56081361]
[1755169576967,0.4344492,120810.0,120800.0,1.56077361]
[1755169577409,0.4344492,120810.0,120800.0,1.34517036]
[1755169577611,0.4344492,120810.0,120800.0,1.34318036]
[1755169577827,0.4344492,120810.0,120800.0,1.47606036]
[1755169578028,0.4344492,120810.0,120800.0,1.34005036]
[1755169578321,0.4344492,120810.0,120800.0,1.47293036]
[1755169579028,0.47234278,120810.0,120800.0,1.47293036]
[1755169579470,0.47234278,120810.0,120800.0,0.22061639]
[1755169579471,0.30661505,120810.0,120800.0,0.22061639]
[1755169579682,0.16561775,120760.0,120750.0,0.0004]
[1755169579893,0.18306677,120760.0,120750.0,0.0004]
[1755169580102,0.18746081,120760.0,120750.0,0.13373326]
[1755169580307,0.18746081,120760.0,120750.0,0.00089326]
[1755169580511,0.24991448,120760.0,120750.0,0.13373326]
[1755169581146,0.26538096,120760.0,120750.0,0.13373326]
[1755169581557,0.26638096,120760.0,120750.0,0.13373326]
[1755169582115,0.26638096,120760.0,120750.0,0.00601326]
[1755169582292,0.16661775,120760.0,120750.0,0.00601326]
[1755169582494,0.18243973,120760.0,120750.0,0.13885326]
[1755169582728,0.16761775,120760.0,120750.0,0.13885326]
[1755169582936,0.16761775,120760.0,120750.0,0.00601326]
[1755169583142,0.16761775,120760.0,120750.0,0.13885326]
[1755169583965,0.2198265,120760.0,120750.0,0.13885326]
[1755169584857,0.06684771,120760.0,120750.0,0.13885326]
[1755169585056,0.23505323,120760.0,120750.0,0.13885326]
[1755169585401,0.23246546,120760.0,120750.0,0.13885326]
[1755169585962,0.23246546,120760.0,120750.0,0.13373326]
[1755169586770,0.23246546,120760.0,120750.0,0.00089326]
[1755169586987,0.18088536,120760.0,120750.0,0.13686326]
[1755169587189,0.18088536,120760.0,120750.0,0.13682326]
[1755169587395,0.18088536,120760.0,120750.0,0.13881326]
[1755169587599,0.2190141,120760.0,120750.0,0.13881326]
[1755169588127,0.20374649,120760.0,120750.0,0.13881326]
[1755169588335,0.01517569,120760.0,120750.0,0.57815133]
[1755169588552,0.01517264,120770.0,120750.0,0.60315133]
[1755169588767,0.01517268,120770.0,120760.0,0.70493807]
[1755169588972,0.18336428,120770.0,120760.0,0.29642538]
[1755169589191,0.18077673,120770.0,120760.0,0.16362538]
[1755169589390,0.18077673,120770.0,120760.0,0.7858402]
[1755169589562,0.18077673,120770.0,120760.0,0.6530402]
[1755169589711,0.18077673,120770.0,120760.0,0.7858402]
[1755169589912,0.18077673,120770.0,120760.0,0.71005807]
[1755169590323,0.18032847,120770.0,120760.0,0.22064325]
[1755169590526,0.01517269,120770.0,120760.0,0.71105807]
[1755169590726,0.01776025,120770.0,120760.0,0.71105807]
[1755169590931,0.01517269,120770.0,120760.0,0.71105807]
[1755169591224,0.01517269,120770.0,120760.0,0.789736]
[1755169591434,0.01517269,120770.0,120760.0,0.790736]
[1755169592285,0.01517269,120770.0,120760.0,0.657936]
[1755169592495,0.00258734,120780.0,120760.0,0.906496]
[1755169592672,0.01776284,120780.0,120770.0,0.51441482]
[1755169592937,0.01776284,120780.0,120770.0,0.6847425]
[1755169593323,0.18335316,120780.0,120770.0,0.6597425]
[1755169593562,0.18335316,120780.0,120770.0,0.6847425]
[1755169593563,0.0151755,120780.0,120770.0,0.6847425]
[1755169593765,0.01776284,120780.0,120770.0,0.6847425]
[1755169594019,0.01776284,120780.0,120770.0,0.6597425]
[1755169594225,0.01776284,120780.0,120770.0,0.6847425]
[1755169594648,0.18335316,120780.0,120770.0,0.6847425]
[1755169594882,0.18076582,120780.0,120770.0,0.6847425]
[1755169595086,0.18076582,120780.0,120770.0,0.6597425]
[1755169595302,0.18076582,120780.0,120770.0,0.6847425]
[1755169595525,0.0151755,120780.0,120770.0,0.7097425]
[1755169595710,0.0151755,120780.0,120770.0,0.8175025]
[1755169595952,0.0151755,120780.0,120770.0,0.8673265]
[1755169596158,0.01776284,120780.0,120770.0,0.8673265]
[1755169596359,0.0151755,120780.0,120770.0,0.8673265]
[1755169596563,0.01776284,120780.0,120770.0,0.8673265]
[1755169596849,0.0151755,120780.0,120770.0,0.8673265]
[1755169597060,0.0151755,120780.0,120770.0,0.88256378]
[1755169597266,0.0151755,120780.0,120770.0,0.85756378]
[1755169597479,0.0151755,120780.0,120770.0,0.88256378]
[1755169597681,0.0151755,120780.0,120770.0,0.85756378]
[1755169597905,0.0151755,120780.0,120770.0,0.37791168]
[1755169598111,0.01776284,120780.0,120770.0,0.7345665]
[1755169598323,0.01776284,120780.0,120770.0,0.78484207]
[1755169598933,0.01776284,120780.0,120770.0,0.75984207]
[1755169599158,0.18335316,120780.0,120770.0,0.65208207]
[1755169599380,0.18076582,120780.0,120770.0,0.78484207]
[1755169600425,0.18076582,120780.0,120770.0,0.75984207]
[1755169600635,0.18076582,120780.0,120770.0,0.78484207]
[1755169600840,0.18076582,120780.0,120770.0,0.62708207]
[1755169601049,0.18076582,120780.0,120770.0,0.11284325]
[1755169601263,0.18076582,120780.0,120770.0,0.24556325]
[1755169601495,0.16560404,120770.0,120760.0,0.226565]
[1755169601709,0.18077954,120770.0,120760.0,0.28658325]
[1755169601917,0.18077954,120770.0,120760.0,0.41718325]
[1755169602126,0.24762725,120770.0,120760.0,0.43900325]
[1755169602355,0.24762725,120770.0,120760.0,0.41400325]
[1755169602580,0.24762725,120770.0,120760.0,0.41718325]
[1755169602796,0.24762725,120770.0,120760.0,0.44530325]
[1755169603014,0.24762725,120770.0,120760.0,0.80199807]
[1755169603222,0.18077954,120770.0,120760.0,0.79713035]
[1755169603424,0.18077954,120770.0,120760.0,0.95485035]
[1755169603760,0.18082215,120770.0,120760.0,0.95485035]
[1755169604874,0.18082215,120770.0,120760.0,0.92985035]
[1755169605079,0.18082215,120770.0,120760.0,0.46543553]
[1755169605283,0.18082215,120770.0,120760.0,0.95485035]
[1755169605701,0.18082215,120770.0,120760.0,0.93571807]
[1755169608463,0.01521811,120770.0,120760.0,0.93571807]
[1755169608755,0.18340971,120770.0,120760.0,0.93571807]
[1755169608984,0.18082215,120770.0,120760.0,0.93571807]
[1755169610421,0.18082215,120770.0,120760.0,0.91071807]
[1755169610622,0.01521811,120770.0,120760.0,0.85621574]
[1755169610822,0.01521811,120770.0,120760.0,1.01389574]
[1755169610970,0.01521811,120770.0,120760.0,0.88121574]
[1755169611193,0.01521811,120770.0,120760.0,0.96063807]
[1755169611948,0.01780567,120770.0,120760.0,0.96063807]
[1755169614243,0.00258756,120770.0,120760.0,0.96063807]
[1755169615712,0.00258734,120780.0,120760.0,0.96063807]
[1755169615916,0.00258734,120780.0,120770.0,0.57213807]
[1755169616124,0.00258734,120780.0,120770.0,0.57743807]
[1755169616327,0.08469592,120790.0,120770.0,0.57743807]
[1755169616542,0.08469275,120790.0,120780.0,0.62201482]
[1755169616747,0.06943484,120790.0,120780.0,0.71003807]
[1755169617627,0.23501146,120790.0,120780.0,0.71003807]
[1755169617832,0.17384105,120800.0,120780.0,0.71003807]
[1755169618074,0.16916375,120790.0,120780.0,0.70685807]
[1755169618292,0.16657662,120790.0,120780.0,0.70685807]
[1755169618620,0.16657662,120790.0,120780.0,0.71003807]
[1755169619255,0.16557662,120790.0,120780.0,0.71003807]
[1755169619459,0.16557662,120790.0,120780.0,0.57743807]
[1755169619460,0.16657662,120790.0,120780.0,0.57743807]
[1755169619659,0.001,120790.0,120780.0,0.76804034]
[1755169619834,0.00358713,120790.0,120780.0,0.76804034]
[1755169620264,0.002,120790.0,120780.0,0.8454199]
[1755169620475,0.00458713,120790.0,120780.0,0.81804034]
[1755169620898,0.00358713,120790.0,120780.0,0.81804034]
[1755169621273,0.00258713,120790.0,120780.0,0.81904034]
[1755169621735,0.00258713,120790.0,120780.0,0.84645795]
[1755169621935,0.00258713,120790.0,120780.0,0.81904034]
[1755169622074,0.00258713,120790.0,120780.0,0.84386134]
[1755169622874,0.00258713,120790.0,120780.0,0.84486134]
[1755169623074,0.16816375,120790.0,120780.0,0.84486134]
[1755169623296,0.16557662,120790.0,120780.0,0.84486134]
[1755169624836,0.16556368,120800.0,120780.0,0.84486134]
[1755169625033,0.00258713,120790.0,120780.0,0.62639809]
[1755169625235,0.00258713,120790.0,120780.0,0.84164134]
[1755169625419,0.16816375,120790.0,120780.0,0.84164134]
[1755169625629,0.16557662,120790.0,120780.0,0.84482134]
[1755169626486,0.16557662,120790.0,120780.0,0.84282134]
[1755169626683,0.16557662,120790.0,120780.0,0.84382134]
[1755169627096,0.16557662,120790.0,120780.0,0.71230134]
[1755169627407,0.16556368,120800.0,120780.0,0.84378134]
[1755169627608,0.16556368,120800.0,120790.0,0.70754807]
[1755169627802,0.16556368,120800.0,120790.0,0.79155818]
[1755169628433,0.16556368,120800.0,120790.0,0.30214336]
[1755169628629,0.16556368,120800.0,120790.0,0.70955807]
[1755169628832,0.16556368,120800.0,120790.0,0.71005133]
[1755169629035,0.16556368,120800.0,120790.0,0.22063651]
[1755169629409,0.16556368,120800.0,120790.0,0.08321651]
[1755169629638,0.16556368,120800.0,120790.0,0.21569651]
[1755169629845,0.16556368,120800.0,120790.0,0.22063651]
[1755169631086,0.16556368,120800.0,120790.0,0.21569651]
[1755169631494,0.16556368,120800.0,120790.0,0.21862651]
[1755169631694,0.16556368,120800.0,120790.0,0.22063651]
[1755169633579,0.16556368,120800.0,120790.0,0.21862651]
[1755169633784,0.16556368,120800.0,120790.0,0.08321651]
[1755169633996,0.50556368,120800.0,120790.0,0.00049326]
[1755169634198,0.54952368,120800.0,120790.0,0.13289326]
[1755169635452,0.54952368,120800.0,120790.0,0.00049326]
[1755169635628,0.54952368,120800.0,120790.0,0.13289326]
[1755169636266,0.54952368,120800.0,120790.0,0.00049326]
[1755169636469,0.54952368,120800.0,120790.0,0.13289326]
[1755169637624,1.0389385,120800.0,120790.0,0.13289326]
[1755169638069,0.54952368,120800.0,120790.0,0.13289326]
[1755169638281,0.16560404,120770.0,120760.0,0.20149]
[1755169638430,0.16560404,120770.0,120760.0,0.41862325]
[1755169638783,0.20371103,120770.0,120760.0,0.41862325]
[1755169639204,0.20371103,120770.0,120760.0,0.41858325]
[1755169640312,0.20371103,120770.0,120760.0,0.42058325]
[1755169640706,0.20371103,120770.0,120760.0,0.33292]
[1755169641001,0.23137796,120770.0,120760.0,0.33292]
[1755169641547,0.23137796,120770.0,120760.0,0.33192]
[1755169642071,0.23137796,120770.0,120760.0,0.33092]
[1755169643291,0.20371103,120770.0,120760.0,0.33092]
[1755169643527,0.20371103,120770.0,120760.0,0.33582]
[1755169643745,0.46961103,120770.0,120760.0,0.33582]
[1755169646440,0.43150404,120770.0,120760.0,0.33582]
[1755169650324,0.16560404,120770.0,120760.0,0.49958761]
[1755169650525,0.16560404,120770.0,120760.0,0.90791807]
[1755169652512,0.16560404,120770.0,120760.0,0.41850325]
[1755169652937,0.16560404,120770.0,120760.0,0.41846325]
[1755169653346,0.16560404,120770.0,120760.0,0.21990325]
[1755169653569,0.16560404,120770.0,120760.0,0.08766325]
[1755169654000,0.16560404,120770.0,120760.0,0.21990325]
[1755169654219,0.16561775,120760.0,120750.0,0.00333]
[1755169654421,0.16561775,120760.0,120750.0,0.22030325]
[1755169655521,0.16611074,120760.0,120750.0,0.22026325]
[1755169655722,0.16611074,120760.0,120750.0,0.1336]
[1755169655952,0.16611074,120760.0,120750.0,0.0014]
[1755169656793,0.16611074,120760.0,120750.0,0.1336]
[1755169657020,0.16611074,120760.0,120750.0,0.1346]
[1755169659526,0.60628301,120760.0,120750.0,0.0024]
[1755169659942,0.60628301,120760.0,120750.0,0.13456]
[1755169660700,0.60628301,120760.0,120750.0,0.13356]
[1755169660940,0.60728301,120760.0,120750.0,0.13356]
[1755169661573,0.60728301,120760.0,120750.0,0.13256]
[1755169661809,0.60828301,120760.0,120750.0,0.13256]
[1755169663597,0.50811074,120760.0,120750.0,0.00544]
[1755169663797,0.50811074,120760.0,120750.0,0.13756]
[1755169664006,0.50811074,120760.0,120750.0,0.00544]
[1755169664204,0.50811074,120760.0,120750.0,0.13756]
[1755169664776,0.50811074,120760.0,120750.0,0.00544]
[1755169665183,0.50811074,120760.0,120750.0,0.13756]
[1755169668520,0.50811074,120760.0,120750.0,0.0004]
[1755169668729,0.50811074,120760.0,120750.0,0.13252]
[1755169669627,0.50811074,120760.0,120750.0,0.0004]
[1755169669842,0.50811074,120760.0,120750.0,0.13554]
[1755169670033,0.50811074,120760.0,120750.0,0.13752]
[1755169672128,0.50811074,120760.0,120750.0,0.00544]
[1755169672333,0.50811074,120760.0,120750.0,0.13752]
[1755169673466,0.16811074,120760.0,120750.0,0.49485482]
[1755169673673,0.16811074,120760.0,120750.0,0.00544]
[1755169674163,0.16811074,120760.0,120750.0,0.13752]
[1755169675730,0.16811074,120760.0,120750.0,0.00544]
[1755169675941,0.16811074,120760.0,120750.0,0.13752]
[1755169678921,0.16811074,120760.0,120750.0,0.00544]
[1755169679125,0.16811074,120760.0,120750.0,0.13748]
[1755169680698,0.16811074,120760.0,120750.0,0.49485482]
[1755169680909,0.16811074,120760.0,120750.0,0.77895955]
[1755169681116,0.16811074,120760.0,120750.0,0.70961807]
[1755169681556,0.16811074,120760.0,120750.0,0.57757807]
[1755169681753,0.16811074,120760.0,120750.0,0.22020325]
[1755169682228,0.16711074,120760.0,120750.0,0.08816325]
[1755169682496,0.16711074,120760.0,120750.0,0.22020325]
[1755169682968,0.16711074,120760.0,120750.0,0.00544]
[1755169683385,0.16611074,120760.0,120750.0,0.13748]
[1755169684063,0.16611074,120760.0,120750.0,0.0004]
[1755169684274,0.16611074,120760.0,120750.0,0.13244]
[1755169684474,0.16611074,120760.0,120750.0,0.1324]
[1755169685446,0.16611074,120760.0,120750.0,0.13744]
[1755169687416,0.16611074,120760.0,120750.0,0.13546]
[1755169687872,0.16611074,120760.0,120750.0,0.0004]
[1755169688078,0.16611074,120760.0,120750.0,0.1324]
[1755169688375,0.16611074,120760.0,120750.0,0.0004]
[1755169688596,0.16611074,120760.0,120750.0,0.1324]
[1755169689008,0.16611074,120760.0,120750.0,0.13551]
[1755169689711,0.50611074,120760.0,120750.0,0.1324]
[1755169689939,0.50611074,120760.0,120750.0,0.0004]
[1755169690160,0.58883399,120760.0,120750.0,0.0004]
[1755169690361,0.60628301,120760.0,120750.0,0.0004]
[1755169690827,0.58883399,120760.0,120750.0,0.1324]
[1755169691029,0.50611074,120760.0,120750.0,0.0056]
[1755169691436,0.16611074,120760.0,120750.0,0.13856]
[1755169691640,0.16611074,120760.0,120750.0,0.13864]
[1755169691844,0.16611074,120760.0,120750.0,0.13655]
[1755169691964,0.16611074,120760.0,120750.0,0.0004]
[1755169692168,0.16611074,120760.0,120750.0,0.13344]
[1755169692402,0.29911074,120760.0,120750.0,0.0004]
[1755169693264,0.63911074,120760.0,120750.0,0.0004]
[1755169693667,0.73928301,120760.0,120750.0,0.0004]
[1755169693838,0.73920301,120760.0,120750.0,0.0004]
[1755169694252,0.74020301,120760.0,120750.0,0.0004]
[1755169694459,0.60828301,120760.0,120750.0,0.0004]
[1755169694658,0.74120301,120760.0,120750.0,0.0004]
[1755169695611,0.60828301,120760.0,120750.0,0.0004]
[1755169695753,0.59083399,120760.0,120750.0,0.0056]
[1755169696091,0.59083399,120760.0,120750.0,0.14224]
[1755169696092,0.50811074,120760.0,120750.0,0.14224]
[1755169696511,0.50811074,120760.0,120750.0,0.14216]
[1755169696936,0.50811074,120760.0,120750.0,0.1422]
[1755169697765,0.50611074,120760.0,120750.0,0.1422]
[1755169701351,0.50611074,120760.0,120750.0,0.14184]
[1755169702405,0.50611074,120760.0,120750.0,0.0056]
[1755169702613,0.50611074,120760.0,120750.0,0.14164]
[1755169703022,0.50611074,120760.0,120750.0,0.1416]
[1755169706820,0.50611074,120760.0,120750.0,0.1516]
[1755169710328,0.16611074,120760.0,120750.0,0.72317807]
[1755169710530,0.16611074,120760.0,120750.0,0.61256807]
[1755169710734,0.16611074,120760.0,120750.0,0.82278588]
[1755169710893,0.16611074,120760.0,120750.0,0.74796807]
[1755169713435,0.16611074,120760.0,120750.0,0.25855325]
[1755169713648,0.16611074,120760.0,120750.0,0.74796807]
[1755169715700,0.16611074,120760.0,120750.0,0.61256807]
[1755169715895,0.16611074,120760.0,120750.0,0.74756807]
[1755169716103,0.16611074,120760.0,120750.0,0.74744807]
[1755169717163,0.16611074,120760.0,120750.0,0.61256807]
[1755169717531,0.16611074,120760.0,120750.0,0.74736807]
[1755169717738,0.16611074,120760.0,120750.0,0.61256807]
[1755169717946,0.16611074,120760.0,120750.0,0.74736807]
[1755169718195,0.16611074,120760.0,120750.0,0.12315325]
[1755169718386,0.16611074,120760.0,120750.0,0.25787325]
[1755169719312,0.16611074,120760.0,120750.0,0.74728807]
[1755169719691,0.16611074,120760.0,120750.0,0.82801688]
[1755169719898,0.16611074,120760.0,120750.0,0.82793688]
[1755169721271,0.16611074,120760.0,120750.0,0.82893688]
[1755169721475,0.16611074,120760.0,120750.0,0.82993688]
[1755169721895,0.16611074,120760.0,120750.0,0.74920807]
[1755169723772,0.00049299,120760.0,120750.0,0.61456807]
[1755169723931,0.00049299,120760.0,120750.0,0.77384807]
[1755169724730,0.16611074,120760.0,120750.0,0.77384807]
[1755169724930,0.00049299,120760.0,120750.0,0.28443325]
[1755169725136,0.00049299,120760.0,120750.0,0.77384807]
[1755169725349,0.00049299,120760.0,120750.0,0.85373288]
[1755169726502,0.00049299,120760.0,120750.0,0.87873288]
[1755169726913,0.16611074,120760.0,120750.0,0.87873288]
[1755169727483,0.00049299,120760.0,120750.0,0.87873288]
[1755169727684,0.00049299,120760.0,120750.0,0.74445288]
[1755169727884,0.00049299,120760.0,120750.0,0.87853288]
[1755169728796,0.00049299,120760.0,120750.0,1.3680277]
[1755169729126,0.00049299,120760.0,120750.0,1.2338677]
[1755169729349,0.00049299,120760.0,120750.0,1.3679077]
[1755169729554,0.00049299,120760.0,120750.0,0.74445288]
[1755169729710,0.00049299,120760.0,120750.0,0.87849288]
[1755169731232,0.00049299,120760.0,120750.0,0.38907806]
[1755169731454,0.00049299,120760.0,120750.0,0.79860807]
[1755169735510,0.00049299,120760.0,120750.0,1.28802289]
[1755169737084,0.00049299,120760.0,120750.0,1.15398289]
[1755169737259,0.00049299,120760.0,120750.0,1.28742289]
[1755169737473,0.17388217,120780.0,120770.0,0.48941482]
[1755169737690,0.17388217,120780.0,120770.0,0.75963449]
[1755169737894,0.17388217,120780.0,120770.0,0.76483449]
[1755169738928,0.17388217,120780.0,120770.0,0.78966149]
[1755169739324,0.17386983,120780.0,120770.0,0.78966149]
[1755169739685,0.17486983,120780.0,120770.0,0.65622149]
[1755169739896,0.17586983,120780.0,120770.0,0.78950149]
[1755169740111,0.17386983,120780.0,120770.0,0.78950149]
[1755169740479,0.17386983,120780.0,120770.0,0.79150149]
[1755169740701,0.17386983,120780.0,120770.0,0.65822149]
[1755169740903,0.17386983,120780.0,120770.0,0.79146149]
[1755169741416,0.16559032,120780.0,120770.0,0.79146149]
[1755169744916,0.16559032,120780.0,120770.0,0.73749974]
[1755169745628,0.17387928,120790.0,120770.0,0.76249974]
[1755169745834,0.17387928,120790.0,120780.0,0.70818807]
[1755169746068,0.17387928,120790.0,120780.0,0.71021807]
[1755169747470,0.17387928,120790.0,120780.0,0.73521807]
[1755169747607,0.17387928,120790.0,120780.0,0.68085204]
[1755169747816,0.17387928,120790.0,120780.0,0.83835404]
[1755169748754,0.17387928,120790.0,120780.0,0.86733845]
[1755169749014,0.17387928,120790.0,120780.0,0.83835404]
[1755169749738,0.17387928,120790.0,120780.0,0.84835404]
[1755169751983,0.17387928,120790.0,120780.0,0.11754525]
[1755169752183,0.17387928,120790.0,120780.0,0.09272325]
[1755169752415,0.17387928,120790.0,120780.0,0.22512325]
[1755169752879,0.17387928,120790.0,120780.0,0.22612325]
[1755169753411,0.17387928,120790.0,120780.0,0.09472325]
[1755169753624,0.17387928,120790.0,120780.0,0.22708325]
[1755169754764,0.17387928,120790.0,120780.0,0.14436]
[1755169755194,0.51387928,120790.0,120780.0,0.012]
[1755169755403,0.55333928,120790.0,120780.0,0.14436]
[1755169756274,0.55333928,120790.0,120780.0,0.14336]
[1755169756850,0.55333928,120790.0,120780.0,0.14236]
[1755169757330,0.55433928,120790.0,120780.0,0.14236]
[1755169757789,0.55433928,120790.0,120780.0,0.01]
[1755169757994,0.55433928,120790.0,120780.0,0.14236]
[1755169758212,0.55433928,120790.0,120780.0,0.01]
[1755169758451,0.55433928,120790.0,120780.0,0.14236]
[1755169758692,0.82023928,120790.0,120780.0,0.14236]
[1755169758907,0.82023928,120790.0,120780.0,0.01]
[1755169759114,0.82123928,120790.0,120780.0,0.14236]
[1755169760121,0.82123928,120790.0,120780.0,0.01]
[1755169760343,0.90396253,120790.0,120780.0,0.14236]
[1755169760563,0.90396253,120790.0,120780.0,0.01]
[1755169760782,0.90396253,120790.0,120780.0,0.14236]
[1755169762050,0.90396253,120790.0,120780.0,0.01]
[1755169762299,0.63806253,120790.0,120780.0,0.14236]
[1755169763698,0.63806253,120790.0,120780.0,0.01]
[1755169763931,0.63806253,120790.0,120780.0,0.14236]
[1755169764817,0.59860253,120790.0,120780.0,0.14236]
[1755169765060,0.59860253,120790.0,120780.0,0.01]
[1755169765279,0.59860253,120790.0,120780.0,0.14236]
[1755169765487,0.59860253,120790.0,120780.0,0.01]
[1755169765708,0.59860253,120790.0,120780.0,0.14236]
[1755169768862,0.51587928,120790.0,120780.0,0.01509]
[1755169769272,0.51587928,120790.0,120780.0,0.14745]
[1755169769524,0.51587928,120790.0,120780.0,0.01509]
[1755169769702,0.17587928,120790.0,120780.0,0.14745]
[1755169769925,0.17587928,120790.0,120780.0,0.71958807]
[1755169770170,0.51587928,120790.0,120780.0,0.71958807]
[1755169771224,0.51587928,120790.0,120780.0,0.23017325]
[1755169771431,0.51487928,120790.0,120780.0,0.23017325]
[1755169771808,0.51387928,120790.0,120780.0,0.23017325]
[1755169772222,0.17387928,120790.0,120780.0,0.71958807]
[1755169773558,0.16556368,120800.0,120780.0,0.58722807]
[1755169773774,0.16557662,120790.0,120780.0,0.03697]
[1755169773980,0.16556368,120800.0,120780.0,0.52743058]
[1755169774215,0.50556368,120800.0,120790.0,0.48941482]
[1755169774421,0.50556368,120800.0,120790.0,0.5603793]
[1755169774595,0.50556368,120800.0,120790.0,0.49450482]
[1755169775203,0.50556368,120800.0,120790.0,0.13741]
[1755169775632,0.50556368,120800.0,120790.0,0.22013325]
[1755169776343,0.17382666,120810.0,120790.0,0.60222807]
[1755169776536,0.17382666,120810.0,120800.0,0.57520807]
[1755169776779,0.17382666,120810.0,120800.0,0.60226807]
[1755169776992,0.17382666,120810.0,120800.0,0.73458807]
[1755169778872,0.17382666,120810.0,120800.0,0.60226807]
[1755169779029,0.17382666,120810.0,120800.0,0.24517325]
[1755169779199,0.17236441,120810.0,120800.0,0.77325486]
[1755169780626,0.17236441,120810.0,120800.0,0.64093486]
[1755169780841,0.17236441,120810.0,120800.0,0.77325486]
[1755169781492,0.17385027,120820.0,120800.0,0.79821486]
[1755169781774,0.17385027,120820.0,120810.0,0.62580947]
[1755169782017,0.1655355,120820.0,120810.0,0.64476396]
[1755169782254,0.1655355,120820.0,120810.0,0.77704396]
[1755169783008,0.1655355,120820.0,120810.0,0.77713863]
[1755169783423,0.17386484,120830.0,120810.0,0.64485863]
[1755169783637,0.17386484,120830.0,120820.0,0.57625229]
[1755169783851,0.17386484,120830.0,120820.0,0.77663836]
[1755169784258,0.17386484,120830.0,120820.0,0.22013325]
[1755169788870,0.17386484,120830.0,120820.0,0.22009325]
[1755169790847,0.17386484,120830.0,120820.0,0.08785325]
[1755169791090,0.17386484,120830.0,120820.0,0.71051211]
[1755169791290,0.17386484,120830.0,120820.0,0.70946807]
[1755169791502,0.17386484,120830.0,120820.0,0.72635541]
[1755169792699,0.16559883,120840.0,120820.0,0.61915541]
[1755169793027,0.50559883,120840.0,120830.0,0.62572861]
[1755169793247,0.50559883,120840.0,120830.0,0.70946807]
[1755169793589,0.50559883,120840.0,120830.0,0.22005325]
[1755169795852,0.50559883,120840.0,120830.0,0.30253768]
[1755169798383,0.50559883,120840.0,120830.0,0.08785325]
[1755169798594,0.50559883,120840.0,120820.0,0.22348]
[1755169798800,0.16810807,120830.0,120820.0,0.30620325]
[1755169799007,0.1655218,120830.0,120820.0,0.44143325]
[1755169799208,0.1655218,120830.0,120820.0,0.22348]
[1755169799408,0.1655218,120830.0,120820.0,0.35564]
[1755169799958,0.1655218,120830.0,120820.0,0.33064]
[1755169800163,0.1655218,120830.0,120820.0,0.19848]
[1755169800372,0.5055218,120830.0,120820.0,0.19848]
[1755169800578,1.30214662,120830.0,120820.0,0.19848]
[1755169800784,0.8127318,120830.0,120820.0,0.19848]
[1755169800994,0.8127318,120830.0,120820.0,0.33064]
[1755169801214,0.8127318,120830.0,120820.0,0.20048]
[1755169801419,0.8127318,120830.0,120820.0,0.33164]
[1755169801620,0.8127318,120830.0,120820.0,0.33064]
[1755169801828,0.8137318,120830.0,120820.0,0.33064]
[1755169802258,0.7714218,120830.0,120820.0,0.19848]
[1755169802474,0.5055218,120830.0,120820.0,0.82514482]
[1755169802686,0.1675218,120830.0,120820.0,0.69302482]
[1755169802900,0.1695218,120830.0,120820.0,0.77574807]
[1755169803125,0.004,120830.0,120820.0,0.93286807]
[1755169803341,0.004,120830.0,120820.0,0.80074807]
[1755169803552,0.004,120830.0,120820.0,1.0403525]
[1755169803771,0.1695218,120830.0,120820.0,1.0403525]
[1755169803980,0.1655218,120830.0,120820.0,1.0403525]
[1755169804418,0.1675218,120830.0,120820.0,1.0403525]
[1755169804659,0.1675218,120830.0,120820.0,0.55093768]
[1755169804872,0.1655218,120830.0,120820.0,1.0403525]
[1755169805089,0.1655218,120830.0,120820.0,1.0413525]
[1755169805502,0.1655218,120830.0,120820.0,1.0423525]
[1755169805707,0.16334726,120830.0,120820.0,1.0423525]
[1755169805911,0.16334726,120830.0,120820.0,1.0173525]
[1755169806097,0.16334726,120830.0,120820.0,1.0423525]
[1755169807686,0.17384761,120850.0,120830.0,0.025]
[1755169807911,0.17384761,120850.0,120840.0,0.15764]
[1755169808128,0.17384761,120850.0,120840.0,0.64909482]
[1755169808340,0.51381687,120860.0,120840.0,0.64913482]
[1755169808552,0.35526238,120860.0,120840.0,0.51645482]
[1755169808765,0.5207431,120860.0,120850.0,0.13584]
[1755169809413,0.35526238,120860.0,120850.0,0.07022548]
[1755169809687,0.17383263,120870.0,120850.0,0.5596403]
[1755169809889,0.18909451,120870.0,120850.0,0.49461482]
[1755169810131,0.16548072,120860.0,120850.0,9.467e-05]
[1755169810350,0.16548072,120860.0,120850.0,0.13281467]
[1755169810605,0.50548072,120860.0,120850.0,0.13281467]
[1755169810802,0.603227,120860.0,120850.0,0.13281467]
[1755169811803,0.603227,120860.0,120850.0,0.13273467]
[1755169812058,0.52174257,120860.0,120850.0,0.13273467]
[1755169812492,0.52474257,120860.0,120850.0,9.467e-05]
[1755169812704,0.52174257,120860.0,120850.0,0.13265467]
[1755169814231,0.52374257,120860.0,120850.0,0.13265467]
[1755169814438,0.50848072,120860.0,120850.0,0.13265467]
[1755169814858,0.50848072,120860.0,120850.0,9.467e-05]
[1755169815060,0.50848072,120860.0,120850.0,0.13265467]
[1755169815506,0.70757994,120860.0,120850.0,0.13265467]
[1755169816177,0.1655218,120830.0,120820.0,0.19848]
[1755169816384,0.5055218,120830.0,120820.0,0.19853049]
[1755169816814,0.5055218,120830.0,120820.0,0.33105049]
[1755169817435,0.58800623,120830.0,120820.0,0.33105049]